bitfinex/quotes_ETHUSD_20251009
["timestamp","ask_amount","ask_price","bid_price","bid_amount"]
[1760002980868,0.00120001,4345.5,4345.4,11.9159909]
[1760002982359,0.00120001,4345.5,4345.4,11.2823909]
[1760002982665,0.44060001,4345.5,4345.3,0.001]
[1760002982868,0.1144,4345.4,4345.3,0.6346]
[1760002983072,0.1144,4345.4,4345.3,2.93593707]
[1760002983275,0.00120001,4345.5,4345.4,2.93488411]
[1760002983438,0.00120001,4345.5,4345.4,9.43088411]
[1760002983772,0.00120001,4345.5,4345.4,9.46348411]
[1760002984429,0.00120001,4345.5,4345.4,9.43088411]
[1760002985252,0.44060001,4345.5,4345.4,9.43088411]
[1760002985728,0.00120001,4345.5,4345.4,6.496]
[1760002985926,0.44060001,4345.5,4345.3,0.001]
[1760002986148,0.4394,4345.4,4345.3,0.001]
[1760002986577,0.00120001,4345.5,4345.4,2.30128411]
[1760002986776,0.00120001,4345.5,4345.4,2.93488411]
[1760002987128,0.00120001,4345.5,4345.4,2.95789695]
[1760002989376,0.00120001,4345.5,4345.4,0.6336]
[1760002989554,0.44060001,4345.5,4345.3,6.497]
[1760002989860,0.4394,4345.4,4345.3,0.001]
[1760002990987,0.4394,4345.4,4345.3,2.30233707]
[1760002992883,0.00120001,4345.5,4345.4,2.30128411]
[1760002993653,0.00120001,4345.5,4345.4,2.93488411]
[1760002994015,0.11560001,4345.5,4345.4,9.43188411]
[1760002997981,0.11480001,4345.5,4345.4,9.43188411]
[1760003000284,0.00040001,4345.5,4345.4,6.497]
[1760003000489,0.42960001,4345.5,4345.4,7.1306]
[1760003000698,0.42960001,4345.5,4345.4,9.43188411]
[1760003001124,0.00040001,4345.5,4345.4,9.43188411]
[1760003001426,0.42960001,4345.5,4345.4,9.43188411]
[1760003001638,0.00040001,4345.5,4345.4,9.43188411]
[1760003004806,0.00040001,4345.5,4345.4,10.32071911]
[1760003005006,0.00040001,4345.5,4345.4,10.41283459]
[1760003005214,0.00040001,4345.5,4345.4,10.38023459]
[1760003008709,0.00040001,4345.5,4345.4,10.28811911]
[1760003009851,0.00040001,4345.5,4345.4,10.32071911]
[1760003010433,0.00040001,4345.5,4345.4,10.43511911]
[1760003010749,0.00040001,4345.5,4345.4,10.52723184]
[1760003013126,0.00040001,4345.5,4345.4,10.49463184]
[1760003013728,0.00040001,4345.5,4345.4,10.52723184]
[1760003014132,0.00040001,4345.5,4345.4,10.49463184]
[1760003016345,0.00040001,4345.5,4345.4,8.79828411]
[1760003016559,0.42960001,4345.5,4345.4,8.79828411]
[1760003016763,0.42960001,4345.5,4345.4,6.497]
[1760003016939,0.42960001,4345.5,4345.4,7.1306]
[1760003017142,0.42960001,4345.5,4345.4,9.43188411]
[1760003019872,0.42960001,4345.5,4345.4,7.1296]
[1760003020296,0.42960001,4345.5,4345.3,0.001]
[1760003020573,0.02356429,4345.4,4345.3,0.001]
[1760003020782,0.72839451,4345.4,4345.3,0.001]
[1760003021088,0.4292,4345.4,4345.3,0.001]
[1760003021238,0.4292,4345.4,4345.3,2.30233707]
[1760003021576,0.4292,4345.4,4345.3,0.001]
[1760003022876,0.00040001,4345.5,4345.3,2.30232892]
[1760003023272,0.4447,4345.4,4345.3,0.001]
[1760003023867,0.4447,4345.4,4345.3,2.30233707]
[1760003024802,0.4447,4345.4,4345.3,0.001]
[1760003026006,0.00040001,4345.5,4345.4,0.6336]
[1760003026206,0.00040001,4345.5,4345.3,0.001]
[1760003026207,0.45260001,4345.5,4345.3,0.001]
[1760003026392,0.2983404,4345.4,4345.3,0.001]
[1760003026599,0.7505404,4345.4,4345.3,0.001]
[1760003027695,0.47496429,4345.4,4345.3,2.30233707]
[1760003028090,0.47496429,4345.4,4345.3,0.001]
[1760003030485,0.47496429,4345.4,4345.3,2.30233707]
[1760003030685,0.4522,4345.4,4345.3,2.30233707]
[1760003031204,0.00040001,4345.5,4345.4,2.30128411]
[1760003031599,0.45260001,4345.5,4345.4,2.30128411]
[1760003032205,0.1144,4345.4,4345.3,2.30233059]
[1760003032615,0.5666,4345.4,4345.3,0.001]
[1760003033206,0.85361378,4345.4,4345.3,0.001]
[1760003033512,0.85361378,4345.4,4344.9,0.001]
[1760003033718,0.73921378,4345.4,4344.9,0.001]
[1760003033918,0.73921378,4345.4,4344.9,0.6346]
[1760003034120,0.4522,4345.3,4344.9,2.93612126]
[1760003034416,0.4522,4345.2,4344.9,0.6346]
[1760003034615,0.02276429,4345.4,4344.9,0.6346]
[1760003034817,0.02276429,4345.4,4345.0,2.30145436]
[1760003035183,0.4522,4345.3,4345.0,2.30145436]
[1760003035388,0.4522,4345.2,4345.0,2.30145436]
[1760003035722,0.4522,4345.1,4345.0,2.30145436]
[1760003038189,0.0231643,4345.5,4345.0,2.30145436]
[1760003038392,0.73441976,4345.4,4345.0,2.30145436]
[1760003038623,0.73441976,4345.4,4344.9,0.001]
[1760003038624,0.02276429,4345.3,4344.9,0.001]
[1760003038828,0.1144,4345.0,4344.9,0.6346]
[1760003039135,0.5666,4345.0,4344.9,0.001]
[1760003039525,2.86809597,4345.0,4344.9,0.001]
[1760003039832,3.38731632,4345.0,4344.9,0.001]
[1760003040426,3.41008061,4345.0,4344.9,0.001]
[1760003040635,1.10858464,4345.0,4344.9,0.001]
[1760003041906,0.58936429,4345.0,4344.9,0.001]
[1760003042451,2.89086026,4345.0,4344.9,0.001]
[1760003042614,0.58936429,4345.0,4344.9,0.001]
[1760003042812,2.89086026,4345.0,4344.9,0.001]
[1760003043009,0.58936429,4345.0,4344.9,0.001]
[1760003043319,1.55484323,4345.0,4344.9,0.001]
[1760003043520,1.57760752,4345.0,4344.9,0.001]
[1760003043931,4.37481641,4345.0,4344.9,0.001]
[1760003044131,3.87910349,4345.0,4344.9,0.001]
[1760003044331,4.37403208,4345.0,4344.9,0.001]
[1760003044543,3.87830349,4345.0,4344.9,0.001]
[1760003044746,1.57680752,4345.0,4344.9,0.001]
[1760003045343,1.55404323,4345.0,4344.9,0.001]
[1760003045540,1.57680752,4345.0,4344.9,0.001]
[1760003046238,3.87830349,4345.0,4344.9,0.001]
[1760003046762,1.57680752,4345.0,4344.9,0.001]
[1760003047068,1.57680752,4345.0,4344.4,2.2558129]
[1760003047245,0.84002509,4344.9,4344.4,2.2558129]
[1760003047446,0.1144,4344.5,4344.4,2.8894129]
[1760003047650,0.5666,4344.5,4344.4,2.8894129]
[1760003048373,0.5666,4344.5,4344.4,2.8904129]
[1760003049244,0.5666,4344.5,4344.4,0.6346]
[1760003049775,0.5666,4344.5,4344.4,2.93641382]
[1760003051968,0.1144,4344.5,4344.4,2.93641382]
[1760003052338,0.5666,4344.5,4344.4,2.93641382]
[1760003052551,0.5666,4344.5,4344.4,0.6346]
[1760003054075,0.5666,4344.5,4344.4,2.93641382]
[1760003054283,0.1144,4344.5,4344.4,2.93641382]
[1760003054483,0.1144,4344.5,4344.4,7.34987977]
[1760003054860,0.1144,4344.5,4344.4,3.46034714]
[1760003055171,0.1144,4344.5,4344.4,3.48336527]
[1760003057289,0.1144,4344.5,4344.4,9.97936527]
[1760003057485,0.1144,4344.5,4344.4,9.95634714]
[1760003058081,0.49629848,4345.5,4344.9,2.30149877]
[1760003058282,0.00040001,4345.5,4345.0,2.32447634]
[1760003058597,0.1144,4344.9,4344.7,2.93524849]
[1760003058890,0.4522,4344.8,4344.7,2.93524849]
[1760003059093,0.1144,4344.9,4344.7,2.93524849]
[1760003059258,0.1144,4344.9,4344.5,0.6336]
[1760003059587,0.4522,4344.8,4344.7,0.6336]
[1760003059791,0.4522,4344.8,4344.7,2.93525488]
[1760003059997,0.1144,4344.9,4344.7,2.93525488]
[1760003060193,0.4522,4344.8,4344.4,6.497]
[1760003060495,0.1144,4344.5,4344.4,7.1306]
[1760003060867,0.1144,4344.5,4344.4,9.43241382]
[1760003061072,0.5666,4344.5,4344.4,0.6346]
[1760003061269,0.5666,4344.5,4344.4,0.001]
[1760003061482,0.85570132,4344.5,4344.4,0.001]
[1760003061741,3.18022645,4344.5,4344.4,0.001]
[1760003061891,3.18022645,4344.5,4344.1,0.001]
[1760003061892,2.3019198,4344.2,4344.1,0.001]
[1760003062199,2.32468409,4344.2,4344.1,0.001]
[1760003062404,3.25054636,4344.2,4344.1,0.001]
[1760003062708,5.07705887,4344.2,4344.1,0.001]
[1760003062910,5.05429458,4344.2,4344.1,0.001]
[1760003067100,5.05349458,4344.2,4344.1,0.001]
[1760003067517,9.74674636,4344.2,4344.1,0.001]
[1760003073057,11.66674636,4344.2,4344.1,0.001]
[1760003073255,11.7589353,4344.2,4344.1,0.001]
[1760003073837,18.7789353,4344.2,4344.1,0.001]
[1760003074034,19.39941259,4344.2,4344.1,0.001]
[1760003074268,20.93388941,4344.2,4344.1,0.001]
[1760003076172,23.32888941,4344.2,4344.1,0.001]
[1760003079971,20.93488941,4344.2,4344.1,0.001]
[1760003080281,23.32888941,4344.2,4344.1,0.001]
[1760003082061,2.30202578,4344.0,4343.9,1e-08]
[1760003082362,13.22062293,4344.0,4343.9,1e-08]
[1760003082563,13.67282293,4344.0,4343.9,1e-08]
[1760003083293,13.05387299,4344.0,4343.9,1e-08]
[1760003083866,3.24985234,4344.0,4343.9,1e-08]
[1760003084085,4.14330579,4344.0,4343.9,1e-08]
[1760003084396,13.03630579,4344.0,4343.9,1e-08]
[1760003084693,13.0135415,4344.0,4343.9,1e-08]
[1760003086494,1.92,4343.9,4342.6,0.09219298]
[1760003086690,2.30299048,4342.2,4340.6,2.395]
[1760003086881,6.99116429,4342.1,4341.1,2.30352128]
[1760003087084,0.4704,4342.0,4340.9,2.3958512]
[1760003087299,8.82392007,4341.9,4341.0,2.3035928]
[1760003087604,0.49316429,4341.8,4341.4,0.6336]
[1760003087787,0.02276429,4341.8,4341.4,0.6336]
[1760003087973,0.4704,4341.7,4341.4,0.6336]
[1760003088295,0.4704,4341.6,4341.5,2.99497568]
[1760003089075,0.02276429,4341.8,4341.7,2.30324527]
[1760003089267,6.498,4341.9,4341.6,2.30329725]
[1760003089589,0.02276429,4341.8,4341.6,2.30329141]
[1760003089791,0.4704,4341.7,4341.6,2.30329141]
[1760003090294,0.4696,4341.7,4341.6,2.30329141]
[1760003090510,0.2158,4342.7,4341.6,0.02303298]
[1760003090800,0.32576429,4342.6,4342.0,2.30304229]
[1760003090972,0.32576429,4342.6,4341.9,2.30313282]
[1760003091484,0.32576429,4342.6,4341.9,2.99468698]
[1760003091797,0.32576429,4342.6,4341.9,0.69155416]
[1760003091798,2.62857972,4342.6,4341.9,0.69155416]
[1760003091989,3.10501769,4342.6,4341.9,0.69155416]
[1760003092183,2.30287629,4342.4,4341.9,0.69155416]
[1760003092397,0.02276429,4342.3,4341.9,0.69155416]
[1760003092578,0.49316429,4342.4,4341.9,0.69155416]
[1760003092782,0.4704,4342.3,4341.9,0.69155416]
[1760003092981,0.02276429,4342.4,4341.9,0.69155416]
[1760003093187,0.4704,4342.2,4341.9,0.69155416]
[1760003093387,0.4704,4342.1,4341.9,2.99468132]
[1760003093583,0.4704,4342.0,4341.9,2.99468132]
[1760003093986,0.4704,4342.0,4341.1,2.3035636]
[1760003093987,10.7244413,4342.0,4338.5,0.1701]
[1760003094188,3.30602065,4340.1,4339.5,0.00848399]
[1760003094410,3.30602065,4340.1,4338.6,0.435]
[1760003094411,3.30602065,4340.4,4339.0,2.30467849]
[1760003094613,0.49316429,4340.3,4339.0,1.92]
[1760003094772,0.49316429,4340.3,4339.1,0.69187633]
[1760003094981,0.4704,4340.2,4339.1,0.69187633]
[1760003095174,0.4704,4340.1,4339.7,2.30427892]
[1760003095390,0.4704,4340.0,4339.7,2.30427892]
[1760003095585,0.4704,4339.9,4339.7,2.30427892]
[1760003095812,0.4704,4339.9,4339.5,2.30440595]
[1760003096017,0.49316429,4340.3,4339.2,2.30457227]
[1760003096243,0.49316429,4340.3,4339.8,0.6336]
[1760003096512,0.1152,4339.9,4339.2,0.1152]
[1760003096812,0.1152,4339.9,4339.7,0.6336]
[1760003096999,0.1152,4339.9,4339.8,2.93785365]
[1760003099383,0.1152,4339.9,4339.8,3.37285365]
[1760003099912,0.02276429,4340.7,4339.7,0.65664306]
[1760003100227,0.1152,4340.2,4340.0,2.30413681]
[1760003100398,0.1152,4340.2,4340.0,2.30412654]
[1760003100594,0.1152,4340.2,4339.9,0.023042]
[1760003100786,4.6085073,4339.8,4338.4,0.29841689]
[1760003100991,4.6085073,4339.8,4336.6,0.12029926]
[1760003100992,1.92,4338.4,4336.6,0.12029926]
[1760003101212,0.49921312,4338.3,4336.5,0.1931]
[1760003101516,0.02881312,4338.3,4337.2,2.74063497]
[1760003101724,0.61884528,4338.2,4337.5,2.3054755]
[1760003102030,0.49921445,4338.1,4336.9,2.396]
[1760003102317,0.2158,4337.2,4335.7,6.936]
[1760003102502,0.2158,4337.2,4335.7,6.501]
[1760003102691,0.2158,4337.6,4336.5,2.30598446]
[1760003102898,3.77642065,4337.5,4336.2,2.30612525]
[1760003103119,0.4992191,4337.4,4336.4,6.501]
[1760003103322,3.30602065,4337.2,4336.3,2.30611028]
[1760003103642,4.7718447,4337.2,4335.6,6.501]
[1760003103943,1.43700362,4337.2,4336.4,2.306025]
[1760003104243,1.43700362,4337.2,4335.0,0.2]
[1760003104244,1.92,4337.1,4335.0,0.2]
[1760003104540,0.27069819,4337.0,4335.2,0.01185166]
[1760003104708,0.4704,4336.9,4335.9,2.30630826]
[1760003104903,0.02882309,4336.8,4336.0,2.3062487]
[1760003105108,0.69252157,4336.8,4335.3,0.01184822]
[1760003105338,0.69252157,4336.8,4335.1,0.00330241]
[1760003105339,1.19174466,4336.8,4335.1,0.00330241]
[1760003105542,0.06197913,4336.8,4335.1,0.00330241]
[1760003105745,10.22430659,4336.6,4335.1,0.00330241]
[1760003105956,1.94882508,4336.5,4335.1,0.00330241]
[1760003106146,0.2158,4335.2,4335.1,0.00330241]
[1760003106319,6.7188,4335.2,4335.1,0.00330241]
[1760003106520,11.85707865,4335.2,4335.1,0.00330241]
[1760003106776,9.55038,4335.2,4335.1,0.00330241]
[1760003106923,12.5499793,4335.2,4335.1,0.00330241]
[1760003107319,13.9799793,4335.2,4335.1,0.00330241]
[1760003107515,12.7145793,4335.2,4335.1,0.00330241]
[1760003107759,1.98488065,4335.2,4335.1,0.00330241]
[1760003107928,0.2153,4335.6,4335.1,0.00330241]
[1760003108253,0.02883173,4335.5,4335.1,0.00330241]
[1760003108451,0.02882841,4336.0,4335.1,0.00330241]
[1760003108659,0.2158,4335.7,4335.1,0.00330241]
[1760003108866,0.19343107,4335.6,4335.1,0.00330241]
[1760003109158,0.19343107,4335.6,4335.2,2.30664767]
[1760003109332,0.19343107,4335.6,4335.1,2.3100135]
[1760003109333,0.1646,4335.5,4335.1,0.00330241]
[1760003109529,0.02882708,4336.2,4335.5,2.30650709]
[1760003109784,0.02882708,4336.2,4335.3,0.01185403]
[1760003110054,0.02882708,4336.2,4335.5,2.30648619]
[1760003110258,0.19342708,4336.2,4335.3,2.3066395]
[1760003110433,0.19342708,4336.2,4335.1,0.64875804]
[1760003110631,0.19342708,4336.2,4335.1,0.77713384]
[1760003110959,0.1152,4335.3,4335.2,2.94029865]
[1760003111575,0.1152,4335.3,4335.2,2.95215929]
[1760003111727,0.1152,4335.3,4335.2,3.38715929]
[1760003112577,0.19342442,4336.6,4335.2,1.08046064]
[1760003112725,0.02882508,4336.5,4336.4,2.30606032]
[1760003112925,0.62032956,4336.8,4336.7,2.3059008]
[1760003113571,0.62032956,4336.8,4336.2,0.01184206]
[1760003113772,0.62032956,4336.8,4336.7,2.3059008]
[1760003113943,0.19261977,4337.3,4337.0,2.30569241]
[1760003114126,0.1638,4337.3,4336.4,0.64543729]
[1760003114323,0.24461777,4337.6,4336.4,1.57321237]
[1760003114562,0.1152,4336.7,4336.4,1.57321237]
[1760003114739,0.1152,4336.7,4336.6,2.93955397]
[1760003114939,0.1152,4336.7,4336.6,2.95139652]
[1760003117360,0.1152,4336.7,4336.6,2.93955397]
[1760003118778,0.1152,4336.7,4336.6,4.03752961]
[1760003119098,0.02881645,4337.8,4337.7,2.30535033]
[1760003119295,0.02881512,4338.0,4337.8,2.30531176]
[1760003119496,0.02881379,4338.2,4337.7,2.30536259]
[1760003119795,0.02881379,4338.2,4337.2,2.77443497]
[1760003119796,0.19311312,4338.3,4338.0,2.30516588]
[1760003120097,0.1152,4338.0,4337.9,2.30526291]
[1760003120281,0.0288118,4338.5,4338.3,2.30504462]
[1760003120481,0.02881113,4338.6,4337.8,0.01182027]
[1760003120871,0.02881113,4338.6,4338.5,2.3049441]
[1760003121207,0.1648,4338.8,4338.5,2.3049441]
[1760003121502,0.1653,4338.7,4338.5,2.3049441]
[1760003122577,0.1653,4338.7,4338.3,2.30502336]
[1760003122772,0.1152,4338.2,4336.6,0.86195139]
[1760003122973,0.1152,4337.2,4337.1,2.30565018]
[1760003123383,0.1152,4337.2,4337.1,2.93925018]
[1760003124403,0.1152,4337.2,4337.1,3.41988556]
[1760003124697,0.1152,4337.5,4337.4,2.93912865]
[1760003124885,0.1152,4337.5,4337.4,9.44512865]
[1760003125086,0.1152,4337.5,4337.4,2.93912865]
[1760003125290,0.76803109,4337.5,4336.6,0.35981777]
[1760003125470,0.68165019,4337.4,4336.7,2.30590013]
[1760003125669,0.62278064,4337.3,4336.6,2.214]
[1760003125889,0.52155152,4337.2,4337.0,2.30569577]
[1760003126087,0.49273109,4337.1,4337.0,2.30569577]
[1760003126286,0.49273109,4337.1,4336.6,2.214]
[1760003126472,0.49273109,4337.0,4336.7,2.30585372]
[1760003126676,0.49273109,4336.9,4336.6,2.214]
[1760003126874,0.31896932,4337.3,4336.7,2.30585163]
[1760003127088,0.49311361,4337.2,4336.9,2.30578073]
[1760003127269,0.52193471,4337.1,4337.0,2.30572447]
[1760003127470,0.52193471,4337.1,4336.6,2.214]
[1760003127710,0.49311361,4337.0,4336.9,2.30575082]
[1760003127900,0.49311361,4337.0,4336.7,6.506]
[1760003128209,0.49311361,4336.9,4336.8,2.30581402]
[1760003128708,0.49311361,4336.9,4336.6,6.506]
[1760003128897,0.49311361,4336.8,4336.7,2.3059008]
[1760003129610,0.49311361,4336.8,4336.7,8.8119008]
[1760003131073,0.49311361,4336.8,4336.7,9.4455008]
[1760003131583,0.49311361,4336.8,4336.7,11.8435008]
[1760003132094,0.64766438,4337.4,4337.2,2.30559837]
[1760003132299,0.49462167,4337.3,4337.2,2.30559837]
[1760003132500,0.78496028,4337.3,4335.6,4.22646111]
[1760003132685,0.6835421,4337.2,4336.5,2.30599992]
[1760003132880,1.11346695,4337.1,4336.5,2.30599992]
[1760003133086,0.68354343,4337.0,4336.5,4.338]
[1760003133291,1.27356695,4336.9,4336.5,4.338]
[1760003133509,0.52344476,4336.8,4336.5,6.64400374]
[1760003133716,0.49462167,4336.7,4336.5,2.30599493]
[1760003133988,0.68354609,4336.6,4335.9,2.30630233]
[1760003134188,0.65472167,4336.5,4335.8,2.3063785]
[1760003134430,0.52344742,4336.4,4335.8,2.3063785]
[1760003134610,0.49462167,4336.3,4335.8,2.3063785]
[1760003134794,0.02882575,4336.4,4335.7,7.1416]
[1760003134795,0.65472167,4336.2,4335.7,7.1416]
[1760003134998,0.49462167,4336.1,4335.9,2.30628776]
[1760003135311,0.1601,4336.2,4336.0,2.30626929]
[1760003135619,0.1152,4335.9,4335.8,2.93997944]
[1760003136293,0.1144,4335.9,4335.8,2.93997944]
[1760003136889,0.1144,4335.9,4335.8,9.44797944]
[1760003137224,0.1144,4335.9,4335.8,0.6336]
[1760003137391,0.60994395,4335.9,4335.8,7.1406]
[1760003138115,0.98524395,4335.9,4335.1,0.001]
[1760003138316,0.1152,4335.3,4335.1,0.001]
[1760003138520,0.1152,4335.3,4335.2,4.85369865]
[1760003138704,0.1152,4335.3,4335.2,8.81469865]
[1760003138899,0.1152,4335.3,4335.2,9.44829865]
[1760003139121,0.77123241,4335.3,4335.1,0.001]
[1760003139322,2.83096479,4335.2,4335.1,0.001]
[1760003139512,3.82237108,4335.2,4335.1,0.001]
[1760003139714,3.98297108,4335.2,4335.1,0.001]
[1760003139912,1.51567243,4335.2,4335.1,0.001]
[1760003140106,0.52426614,4335.2,4335.1,0.001]
[1760003140306,0.65603241,4335.2,4335.1,0.001]
[1760003141720,0.65378441,4335.2,4335.1,0.001]
[1760003142833,0.49318441,4335.2,4335.1,2.31961383]
[1760003143019,0.1152,4335.3,4335.2,2.30669865]
[1760003143942,0.74908428,4336.7,4335.4,2.30659224]
[1760003144248,0.1152,4336.0,4335.5,5.4837]
[1760003144402,0.1152,4336.0,4335.9,2.93992625]
[1760003144608,0.0288211,4337.1,4336.5,2.30600068]
[1760003144802,0.0288211,4337.1,4336.6,2.30594183]
[1760003145233,0.1900211,4337.1,4336.6,2.30594183]
[1760003145424,0.0288211,4337.1,4336.6,2.30594183]
[1760003145622,0.1152,4336.6,4336.3,0.6336]
[1760003145803,0.1612,4337.0,4336.3,0.6336]
[1760003146132,0.1612,4337.0,4336.3,2.93970489]
[1760003146301,0.02881977,4337.3,4336.3,0.6336]
[1760003146498,0.1612,4337.2,4335.6,0.1152]
[1760003146699,0.1152,4336.0,4335.9,0.6336]
[1760003147103,0.1152,4336.0,4335.8,2.93995315]
[1760003147518,0.1152,4336.0,4335.9,2.93992625]
[1760003148928,0.1152,4336.0,4335.9,3.41202625]
[1760003149345,0.1152,4336.0,4335.9,2.93992625]
[1760003149932,0.1152,4336.0,4335.9,9.45592625]
[1760003151133,0.1152,4336.0,4335.6,0.6336]
[1760003151319,0.1152,4335.7,4335.6,0.6336]
[1760003151525,0.1152,4335.7,4335.6,2.94008386]
[1760003152041,0.1612,4336.4,4335.9,2.30632625]
[1760003152252,0.19002641,4336.3,4335.9,2.30632625]
[1760003152553,0.1612,4336.2,4336.1,2.30619681]
[1760003152846,0.1612,4336.7,4335.7,2.30643264]
[1760003153041,0.02882442,4336.6,4336.2,2.30612184]
[1760003153441,0.19002442,4336.6,4336.2,2.30612184]
[1760003154314,0.1612,4336.6,4336.1,2.30620606]
[1760003154515,0.1612,4336.6,4335.6,0.6336]
[1760003154715,0.1612,4336.6,4335.9,2.30628471]
[1760003154939,0.02882508,4336.5,4336.1,2.30619473]
[1760003155144,0.1612,4336.4,4336.1,2.30619473]
[1760003155348,0.19002309,4336.8,4336.0,2.30627306]
[1760003155514,0.19002309,4336.8,4336.3,2.30611265]
[1760003155918,0.02882309,4336.8,4336.5,2.30599654]
[1760003156226,0.02882243,4336.9,4336.4,2.30604131]
[1760003156430,0.02882243,4336.9,4336.6,2.30595351]
[1760003156629,0.19002043,4337.2,4336.7,2.30588891]
[1760003156845,0.02882043,4337.2,4336.8,3.131]
[1760003157042,0.2189,4337.9,4336.9,0.6336]
[1760003157240,0.19121645,4337.8,4336.9,0.6336]
[1760003157439,0.1624,4337.7,4337.0,2.30573972]
[1760003157642,0.02881777,4337.6,4337.1,2.30567261]
[1760003157941,0.02881777,4337.6,4336.9,0.6336]
[1760003158143,2.398,4338.4,4336.8,0.762]
[1760003158144,0.1624,4338.1,4337.6,2.30540294]
[1760003158345,0.1624,4338.1,4336.8,0.762]
[1760003158346,0.19171512,4338.0,4337.5,2.30545958]
[1760003158854,0.19171512,4338.0,4337.5,2.30546037]
[1760003159150,0.1629,4337.9,4337.5,2.30546037]
[1760003159382,0.1629,4338.4,4337.7,2.3053692]
[1760003159654,0.1629,4338.4,4337.8,2.30526901]
[1760003159858,0.23710312,4338.3,4337.7,2.30535911]
[1760003160156,0.1629,4338.2,4337.2,0.6336]
[1760003160355,0.002,4337.3,4337.0,0.6336]
[1760003160526,0.002,4337.3,4337.2,2.93923497]
[1760003162554,0.002,4337.3,4337.2,3.41133497]
[1760003162756,0.002,4337.3,4337.2,10.61024143]
[1760003162959,0.002,4337.3,4337.2,4.09824143]
[1760003163168,0.002,4337.3,4337.2,13.00824143]
[1760003165042,0.002,4337.3,4337.2,6.01824143]
[1760003165236,0.002,4337.3,4337.2,14.92724143]
[1760003166573,0.002,4337.3,4337.2,0.1152]
[1760003166901,0.2659,4337.3,4336.7,2.85186481]
[1760003167080,0.1507,4337.3,4336.8,2.30584154]
[1760003167237,0.1507,4337.3,4336.7,0.546]
[1760003167238,0.1152,4336.9,4336.7,2.85188668]
[1760003167574,0.1487,4336.8,4336.1,6.51]
[1760003167776,0.1152,4336.5,4336.1,6.51]
[1760003168072,2.33640573,4337.3,4335.4,4.70458675]
[1760003168073,0.1487,4336.4,4335.4,4.70458675]
[1760003168289,0.1487,4336.4,4335.7,2.306394]
[1760003168482,0.1487,4336.4,4335.9,2.93990912]
[1760003168781,0.02882309,4336.8,4336.3,2.30610295]
[1760003168984,0.17752309,4336.8,4336.3,2.30610295]
[1760003169184,0.1487,4336.7,4335.6,0.4721]
[1760003169387,0.02882043,4337.2,4336.5,2.30596586]
[1760003169764,0.02882043,4337.2,4336.4,2.31869167]
[1760003169983,0.002,4337.3,4337.2,2.30563497]
[1760003170284,0.002,4337.3,4337.2,2.93923497]
[1760003170487,0.002,4337.3,4337.2,3.41133497]
[1760003170707,0.002,4337.3,4337.2,6.47345761]
[1760003171200,0.002,4337.3,4337.2,12.98645761]
[1760003172699,0.002,4337.3,4337.2,10.11635761]
[1760003173007,0.002,4337.3,4337.2,12.50845761]
[1760003173301,0.002,4337.3,4337.2,14.90645761]
[1760003173610,1e-08,4337.7,4337.6,4.85902235]
[1760003173775,1e-08,4337.7,4337.6,11.37402235]
[1760003174102,1e-08,4337.7,4337.6,11.82942235]
[1760003174697,1e-08,4337.7,4337.6,12.28875962]
[1760003176010,1e-08,4337.7,4336.1,0.2173]
[1760003176215,0.1591,4337.6,4336.0,0.4554]
[1760003176712,0.27527059,4337.5,4336.6,2.30590993]
[1760003176870,0.02881844,4337.5,4336.7,0.01263759]
[1760003177066,0.02881844,4337.5,4336.6,2.69494189]
[1760003177268,2.30558181,4337.3,4336.6,0.389]
[1760003177571,0.02882043,4337.2,4336.6,0.389]
[1760003177994,0.1152,4336.7,4336.6,1.0226]
[1760003178399,0.1152,4336.7,4336.6,0.389]
[1760003178806,0.1152,4336.7,4336.6,0.39]
[1760003179379,0.1152,4336.7,4336.6,0.001]
[1760003179597,0.1152,4336.7,4336.6,0.6346]
[1760003179985,0.1152,4336.7,4336.6,2.94055397]
[1760003180781,0.02881977,4337.3,4336.6,2.94055397]
[1760003180782,0.18791777,4337.6,4336.9,0.6336]
[1760003181000,1e-08,4337.7,4337.0,0.01263464]
[1760003181202,0.02881712,4337.7,4337.0,0.64623464]
[1760003181417,0.1591,4337.6,4337.0,0.6336]
[1760003181602,0.1152,4337.0,4336.6,0.001]
[1760003181802,2.30574847,4337.0,4336.6,0.001]
[1760003182110,2.30586947,4336.8,4336.6,0.001]
[1760003182411,0.02882243,4336.9,4336.6,0.001]
[1760003182611,0.1591,4336.7,4336.6,0.001]
[1760003182994,2.4650008,4336.7,4336.6,0.001]
[1760003183193,0.1591,4336.7,4336.6,0.001]
[1760003184214,2.4650008,4336.7,4336.6,0.001]
[1760003184414,0.1591,4336.7,4336.6,0.001]
[1760003184599,0.02882309,4336.8,4336.6,0.001]
[1760003184798,1.94882243,4336.9,4336.6,0.001]
[1760003185004,2.30589174,4336.8,4336.6,0.001]
[1760003185212,9.00882456,4336.7,4336.6,0.001]
[1760003185412,11.3780008,4336.7,4336.6,0.001]
[1760003186314,0.1591,4336.7,4336.6,0.001]
[1760003186523,11.40682456,4336.7,4336.6,0.001]
[1760003186698,11.3780008,4336.7,4336.6,0.001]
[1760003186898,0.1591,4336.7,4336.6,0.001]
[1760003187094,6.515,4336.7,4336.6,0.001]
[1760003187294,0.89684973,4336.9,4336.6,0.001]
[1760003187295,2.81684973,4336.9,4336.6,0.001]
[1760003187495,0.02882309,4336.8,4336.6,0.001]
[1760003187694,6.515,4336.7,4336.6,0.001]
[1760003187922,0.89684973,4336.9,4336.6,0.001]
[1760003188095,6.515,4336.8,4336.6,0.001]
[1760003188294,0.02882376,4336.7,4336.6,0.001]
[1760003188795,6.515,4336.8,4336.6,0.001]
[1760003189114,0.1591,4337.4,4336.6,0.001]
[1760003189293,2.30580515,4336.9,4336.6,0.001]
[1760003189493,0.02882309,4336.8,4336.6,0.001]
[1760003189693,0.02882243,4336.9,4336.6,0.001]
[1760003190129,6.515,4337.0,4336.6,0.001]
[1760003190295,0.02882243,4336.9,4336.6,0.001]
[1760003190697,6.6741,4337.0,4336.6,0.001]
[1760003191327,0.1591,4337.0,4336.6,0.001]
[1760003191505,0.18792176,4337.0,4336.6,0.001]
[1760003191710,5.77792176,4337.0,4336.6,0.001]
[1760003192022,5.7491,4337.0,4336.6,0.001]